bitfinex/quotes_BTCUSD_20241202
["timestamp","ask_amount","ask_price","bid_price","bid_amount"]
[1733150305087,0.26339086,96438.0,96437.0,0.11842867]
[1733150305772,0.26339086,96438.0,96437.0,0.11742867]
[1733150305993,0.26339086,96438.0,96437.0,0.11942867]
[1733150306449,0.26439086,96438.0,96437.0,0.11942867]
[1733150306677,0.26339086,96438.0,96437.0,0.11742867]
[1733150306921,0.26439086,96438.0,96437.0,0.11742867]
[1733150307158,0.207389,96437.0,96436.0,0.11742867]
[1733150307399,0.31991466,96437.0,96436.0,0.11742867]
[1733150307603,0.3199299,96437.0,96436.0,0.11742867]
[1733150307846,0.1518652,96438.0,96436.0,0.11742867]
[1733150308088,0.1518652,96438.0,96437.0,0.001]
[1733150308293,0.16156034,96438.0,96437.0,0.001]
[1733150308498,0.207389,96437.0,96436.0,0.11742867]
[1733150308701,0.31993016,96437.0,96436.0,0.11842867]
[1733150309156,0.31993016,96437.0,96436.0,0.11650767]
[1733150310946,0.21708495,96437.0,96436.0,0.11650767]
[1733150311157,0.1508652,96438.0,96437.0,0.11650767]
[1733150312106,0.3582522,96438.0,96437.0,0.11650767]
[1733150312315,0.66848541,96438.0,96437.0,0.11650767]
[1733150312779,0.66848541,96438.0,96437.0,0.11750767]
[1733150313237,0.67818238,96438.0,96437.0,0.11750767]
[1733150313911,0.67818238,96438.0,96437.0,0.001]
[1733150314146,0.69540614,96438.0,96437.0,0.001]
[1733150314356,0.0105625,96438.0,96437.0,0.12944878]
[1733150314603,0.0105625,96438.0,96437.0,0.11750767]
[1733150314821,0.0008652,96438.0,96437.0,0.11750767]
[1733150316335,0.0008652,96438.0,96437.0,0.32489667]
[1733150316787,0.0008652,96438.0,96437.0,0.11750767]
[1733150317003,0.10371041,96438.0,96437.0,0.001]
[1733150317240,0.11340856,96438.0,96437.0,0.001]
[1733150318596,0.26340856,96438.0,96437.0,0.001]
[1733150319018,0.47079556,96438.0,96437.0,0.001]
[1733150319290,0.16056335,96438.0,96437.0,0.11750767]
[1733150319757,0.0008652,96438.0,96437.0,0.11750767]
[1733150320206,0.20731,96474.0,96457.0,0.41469]
[1733150320422,0.0008651,96494.0,96466.0,0.52376719]
[1733150320423,0.0002,96479.0,96466.0,0.52376719]
[1733150320633,0.0002,96479.0,96466.0,0.7766124]
[1733150320858,0.0002,96479.0,96466.0,1.00847765]
[1733150321125,0.0002,96479.0,96478.0,0.31644119]
[1733150321314,0.0002,96479.0,96478.0,0.8495874]
[1733150322178,0.00037685,96479.0,96478.0,0.8495874]
[1733150322850,0.00037685,96479.0,96478.0,0.43723452]
[1733150323115,0.00037685,96479.0,96478.0,0.55374219]
[1733150323550,0.00037685,96479.0,96478.0,0.56274219]
[1733150325176,0.00037685,96479.0,96478.0,0.6655874]
[1733150325391,0.00037685,96479.0,96478.0,0.8655874]
[1733150326060,0.0008651,96494.0,96493.0,0.74670919]
[1733150326280,0.00145438,96494.0,96493.0,0.8495544]
[1733150327638,0.00145438,96494.0,96493.0,0.8585544]
[1733150327878,0.00145438,96494.0,96493.0,0.9379544]
[1733150328760,0.00145438,96494.0,96493.0,0.73802088]
[1733150328969,0.00145438,96494.0,96493.0,0.7289544]
[1733150329183,0.00145438,96494.0,96493.0,0.19590767]
[1733150329421,0.00145438,96494.0,96493.0,0.12550767]
[1733150330078,0.00145438,96494.0,96493.0,0.32544119]
[1733150330528,0.00145438,96494.0,96493.0,0.12550767]
[1733150330975,0.00145438,96494.0,96493.0,0.33444119]
[1733150331468,0.00145438,96494.0,96493.0,0.32544119]
[1733150331915,0.00145438,96494.0,96493.0,0.35544119]
[1733150332549,0.00145438,96494.0,96493.0,0.34844119]
[1733150332769,0.00145438,96494.0,96493.0,0.32544119]
[1733150332978,0.00145438,96494.0,96493.0,0.33444119]
[1733150333447,0.00145438,96494.0,96493.0,0.3211018]
[1733150333656,0.00058928,96494.0,96493.0,0.3301018]
[1733150333890,0.0008647,96512.0,96511.0,0.11216828]
[1733150334116,0.00104138,96512.0,96511.0,0.11216828]
[1733150334320,0.00104138,96512.0,96511.0,0.12338511]
[1733150335007,0.00104138,96512.0,96511.0,0.16582563]
[1733150336107,0.00104138,96512.0,96511.0,0.17482563]
[1733150336339,0.00104138,96512.0,96511.0,0.1616088]
[1733150336817,0.00104138,96512.0,96511.0,0.1706088]
[1733150337043,0.10388659,96512.0,96511.0,0.1636088]
[1733150337681,0.31111459,96512.0,96511.0,0.1636088]
[1733150337944,0.31111459,96512.0,96511.0,0.05144052]
[1733150338655,0.31111459,96512.0,96511.0,0.06044052]
[1733150338899,0.31111459,96512.0,96511.0,0.05144052]
[1733150339104,0.31111459,96512.0,96511.0,0.04244052]
[1733150339317,0.31111459,96512.0,96511.0,0.04944052]
[1733150339528,0.31111459,96512.0,96511.0,0.04744052]
[1733150339765,0.31111459,96512.0,96511.0,0.04944052]
[1733150339976,0.31111459,96512.0,96511.0,0.04444052]
[1733150340403,0.31111459,96512.0,96511.0,0.04644052]
[1733150341099,1.96731427,96512.0,96511.0,0.04644052]
[1733150341315,0.99374327,96512.0,96511.0,0.04644052]
[1733150341525,0.91943727,96512.0,96511.0,0.04644052]
[1733150341818,1.06530627,96512.0,96511.0,0.00299452]
[1733150342028,1.06530627,96512.0,96479.0,0.11389408]
[1733150342029,0.207286,96485.0,96484.0,0.11216828]
[1733150342242,0.08464138,96512.0,96485.0,0.11216828]
[1733150342503,0.207278,96489.0,96488.0,0.11216828]
[1733150342717,0.31012321,96489.0,96488.0,0.11216828]
[1733150344569,0.207261,96497.0,96496.0,0.11216828]
[1733150345468,0.207261,96497.0,96492.0,0.11216828]
[1733150345469,0.10284521,96497.0,96492.0,0.11216828]
[1733150345675,0.207273,96491.0,96490.0,0.11216828]
[1733150347092,0.207273,96491.0,96490.0,0.11716828]
[1733150347300,0.31011821,96491.0,96490.0,0.12116828]
[1733150347514,0.32696474,96491.0,96490.0,0.009]
[1733150347730,0.39516208,96491.0,96490.0,0.009]
[1733150347949,0.32696474,96491.0,96490.0,0.009]
[1733150348171,0.31011821,96491.0,96490.0,0.009]
[1733150348387,0.207261,96497.0,96495.0,0.11216828]
[1733150348602,0.10284521,96496.0,96495.0,0.11216828]
[1733150349525,0.207264,96495.0,96490.0,0.007]
[1733150349741,0.207264,96495.0,96489.0,0.11216828]
[1733150349742,0.10284521,96494.0,96489.0,0.11216828]
[1733150349928,0.414555,96489.0,96485.0,0.11216828]
[1733150350189,0.414555,96489.0,96488.0,0.11216828]
[1733150350402,0.414555,96489.0,96479.0,0.0017258]
[1733150350403,0.207286,96485.0,96482.0,0.11216828]
[1733150350621,0.207286,96485.0,96479.0,0.0017258]
[1733150350622,0.207296,96480.0,96479.0,0.0017258]
[1733150350897,0.31014121,96480.0,96479.0,0.0017258]
[1733150351108,0.58587048,96480.0,96479.0,0.0017258]
[1733150352231,0.58587048,96480.0,96479.0,0.00231508]
[1733150352460,0.68870194,96480.0,96479.0,0.00231508]
[1733150352902,0.68870194,96480.0,96445.0,0.11216828]
[1733150352903,0.207369,96446.0,96445.0,0.11216828]
[1733150353135,0.207378,96442.0,96440.0,0.11216828]
[1733150353364,0.10284521,96441.0,96440.0,0.11216828]
[1733150353581,0.1895,96462.0,96461.0,0.11216828]
[1733150353796,0.1895,96462.0,96461.0,0.12338511]
[1733150354049,0.414586,96482.0,96475.0,0.11216828]
[1733150354280,0.11250934,96481.0,96475.0,0.11216828]
[1733150354494,0.21696013,96480.0,96475.0,0.11216828]
[1733150354715,0.207293,96482.0,96479.0,0.0017258]
[1733150354926,0.207296,96480.0,96479.0,0.0017258]
[1733150355150,0.31014121,96480.0,96479.0,0.0017258]
[1733150356432,0.31014121,96480.0,96479.0,0.0027258]
[1733150356433,0.46014121,96480.0,96479.0,0.0027258]
[1733150356883,0.56297267,96480.0,96479.0,0.0037258]
[1733150357115,0.46014121,96480.0,96479.0,0.0037258]
[1733150357344,0.46979949,96480.0,96479.0,0.0037258]
[1733150362993,0.46014121,96480.0,96479.0,0.0037258]
[1733150363229,0.15,96482.0,96481.0,0.11216828]
[1733150363478,0.15,96482.0,96479.0,0.0037258]
[1733150363479,0.1895,96483.0,96482.0,0.11216828]
[1733150364148,0.102,96483.0,96482.0,0.11216828]
[1733150364353,0.414574,96485.0,96482.0,0.11216828]
[1733150364556,0.31013421,96484.0,96483.0,0.11216828]
[1733150364762,0.46013421,96484.0,96483.0,0.11216828]
[1733150365720,0.15,96484.0,96483.0,0.11216828]
[1733150365955,0.1895,96488.0,96487.0,0.11216828]
[1733150366180,0.207271,96492.0,96487.0,0.11216828]
[1733150366419,0.0008629,96494.0,96493.0,0.11216828]
[1733150366874,0.0008629,96494.0,96493.0,0.10216828]
[1733150367750,0.0028629,96494.0,96493.0,0.10216828]
[1733150369499,0.0028629,96494.0,96493.0,0.10516828]
[1733150369730,0.0008629,96494.0,96493.0,0.10516828]
[1733150370198,0.0008629,96494.0,96493.0,0.10816828]
[1733150370651,0.10370811,96494.0,96493.0,0.006]
[1733150371082,0.18593704,96494.0,96493.0,0.006]
[1733150371293,0.13085241,96494.0,96493.0,0.006]
[1733150372842,0.20845241,96494.0,96493.0,0.006]
[1733150373288,0.33448441,96494.0,96493.0,0.006]
[1733150373532,0.31866741,96494.0,96493.0,0.006]
[1733150373973,0.207296,96480.0,96479.0,0.3017258]
[1733150374182,0.31014121,96480.0,96479.0,0.3017258]
[1733150374397,0.31982388,96480.0,96479.0,0.3017258]
[1733150375887,0.31982388,96480.0,96479.0,0.3027258]
[1733150376104,0.33728395,96480.0,96479.0,0.3027258]
[1733150378780,0.93582634,96480.0,96479.0,0.3027258]
[1733150379028,1.47199334,96480.0,96479.0,0.3027258]
[1733150379258,1.43651334,96480.0,96479.0,0.3027258]
[1733150379490,0.57505434,96480.0,96479.0,0.3027258]
[1733150379709,0.54349434,96480.0,96479.0,0.3027258]
[1733150380163,0.54349434,96480.0,96479.0,0.3017258]
[1733150380371,0.54749434,96480.0,96479.0,0.3017258]
[1733150381062,0.47230795,96480.0,96479.0,0.3017258]
[1733150381271,0.34128395,96480.0,96479.0,0.3017258]
[1733150381452,0.46336295,96480.0,96479.0,0.3017258]
[1733150381691,0.34128395,96480.0,96479.0,0.3017258]
[1733150382349,0.207333,96463.0,96453.0,0.10216828]
[1733150382555,0.10284521,96462.0,96453.0,0.10234513]
[1733150383045,0.10284521,96462.0,96461.0,0.10216828]
[1733150383971,0.12033826,96462.0,96461.0,0.10216828]
[1733150384617,0.12033826,96462.0,96461.0,0.10716828]
[1733150386247,0.1895,96478.0,96464.0,0.10216828]
[1733150386479,0.207324,96468.0,96464.0,0.10216828]
[1733150386691,0.207326,96466.0,96464.0,0.10216828]
[1733150386883,0.207329,96465.0,96464.0,0.10216828]
[1733150387098,0.10284521,96466.0,96464.0,0.10216828]
[1733150387320,0.207329,96465.0,96464.0,0.10216828]
[1733150387531,0.10284521,96466.0,96464.0,0.10216828]
[1733150387775,0.20716653,96478.0,96470.0,0.10216828]
[1733150387776,0.207303,96477.0,96470.0,0.10216828]
[1733150387987,0.11253296,96476.0,96472.0,0.10216828]
[1733150388227,0.1895,96483.0,96465.0,0.1207]
[1733150388228,0.01700818,96478.0,96477.0,0.10216828]
[1733150388659,0.20727,96493.0,96477.0,0.10216828]
[1733150388660,0.207277,96490.0,96477.0,0.10216828]
[1733150388928,0.21570572,96479.0,96478.0,0.10216828]
[1733150390717,0.21657052,96479.0,96478.0,0.10016828]
[1733150390945,0.21657052,96479.0,96478.0,0.10116828]
[1733150392341,0.31941573,96479.0,96478.0,0.001]
[1733150392549,0.414602,96478.0,96472.0,0.10016828]
[1733150392759,0.10284521,96477.0,96472.0,0.10016828]
[1733150393220,0.10284521,96477.0,96467.0,0.10016828]
[1733150393866,0.00968828,96476.0,96472.0,0.002]
[1733150394118,0.31015321,96475.0,96472.0,0.002]
[1733150394328,0.207316,96471.0,96467.0,0.10016828]
[1733150394545,0.20732,96469.0,96467.0,0.10316828]
[1733150394783,0.20732,96469.0,96467.0,0.10116828]
[1733150395015,0.20732,96469.0,96467.0,0.10016828]
[1733150395496,0.207331,96464.0,96461.0,0.10189788]
[1733150395725,0.10284521,96463.0,96461.0,0.0017296]
[1733150395931,0.207335,96462.0,96461.0,0.0017296]
[1733150396375,0.10284521,96463.0,96461.0,0.0017296]
[1733150396620,0.01695529,96462.0,96461.0,0.0017296]
[1733150396838,0.207319,96470.0,96466.0,0.10016828]
[1733150397050,0.10284521,96469.0,96467.0,0.008]
[1733150397278,0.207322,96468.0,96467.0,0.008]
[1733150397505,0.207322,96468.0,96466.0,0.10016828]
[1733150397956,0.10284521,96469.0,96466.0,0.10016828]
[1733150398450,0.207322,96468.0,96467.0,0.005]
[1733150398665,0.207322,96468.0,96466.0,0.10016828]
[1733150398887,0.207322,96468.0,96467.0,0.004]
[1733150399096,0.31016721,96468.0,96467.0,0.004]
[1733150399306,0.32701678,96468.0,96467.0,0.004]
[1733150399519,0.33671381,96468.0,96467.0,0.004]
[1733150399949,0.33671381,96468.0,96461.0,0.0017296]
[1733150400164,0.207335,96462.0,96461.0,0.0017296]
[1733150400400,0.31987724,96462.0,96461.0,0.0017296]
[1733150400639,0.39501532,96462.0,96461.0,0.0017296]
[1733150401111,0.207352,96454.0,96453.0,0.00017685]
[1733150401320,0.31989424,96454.0,96453.0,0.00017685]
[1733150402070,0.31989424,96454.0,96453.0,0.10034513]
[1733150402071,0.00969703,96454.0,96453.0,0.10034513]
[1733150402289,0.207344,96459.0,96453.0,0.10034513]
[1733150402499,0.001,96462.0,96458.0,0.10016828]
[1733150402710,0.10284521,96461.0,96458.0,0.10016828]
[1733150403162,0.207339,96460.0,96458.0,0.10016828]
[1733150403372,0.10284521,96460.0,96458.0,0.10016828]
[1733150403804,0.15,96459.0,96458.0,0.10016828]
[1733150404475,0.15,96459.0,96458.0,0.10316828]
[1733150404696,0.26253925,96459.0,96458.0,0.004]
[1733150404935,0.26253925,96459.0,96453.0,0.00017685]
[1733150404936,0.207352,96454.0,96453.0,0.00017685]
[1733150405160,0.31989125,96454.0,96453.0,0.00017685]
[1733150405379,0.11253925,96454.0,96453.0,0.00017685]
[1733150405604,0.207354,96453.0,96448.0,0.08934513]
[1733150405832,0.207359,96451.0,96448.0,0.08934513]
[1733150406078,0.10284521,96450.0,96448.0,0.08934513]
[1733150406295,0.207363,96449.0,96448.0,0.08934513]
[1733150406512,0.207373,96445.0,96442.0,0.08934513]
[1733150406728,0.15,96459.0,96438.0,0.08934513]
[1733150406729,0.31022021,96444.0,96438.0,0.08934513]
[1733150406944,0.207383,96440.0,96438.0,0.08934513]
[1733150407166,0.10284521,96439.0,96436.0,0.0017266]
[1733150407381,0.207387,96438.0,96436.0,0.0017266]
[1733150407621,0.10284521,96437.0,96436.0,0.0017266]
[1733150407855,0.1125374,96437.0,96436.0,0.0017266]
[1733150408072,0.01710763,96439.0,96437.0,0.08934513]
[1733150408294,0.01710763,96439.0,96438.0,0.005]
[1733150408511,0.207334,96463.0,96438.0,0.005]
[1733150408722,0.01763463,96444.0,96438.0,0.09434513]
[1733150408963,0.10284521,96443.0,96438.0,0.09434513]
[1733150409629,0.10284521,96443.0,96438.0,0.08934513]
[1733150409838,0.207378,96442.0,96438.0,0.08702201]
[1733150410075,0.207382,96440.0,96438.0,0.08702201]
[1733150410281,0.31022721,96440.0,96438.0,0.08702201]
[1733150410511,0.10284521,96440.0,96438.0,0.08702201]
[1733150410746,0.01744224,96443.0,96442.0,0.08702201]
[1733150411000,0.207345,96458.0,96442.0,0.08702201]
[1733150411239,0.0170344,96450.0,96448.0,0.08702201]
[1733150411452,0.207348,96456.0,96454.0,0.08702201]
[1733150412096,0.10284521,96457.0,96454.0,0.08702201]
[1733150412320,0.207348,96456.0,96454.0,0.08702201]
[1733150413874,0.207363,96449.0,96447.0,0.08702201]
[1733150414086,0.001,96456.0,96428.0,0.207408]
[1733150414087,0.10284521,96448.0,96428.0,0.207408]
[1733150414329,0.10284521,96448.0,96435.0,0.00017685]
[1733150414579,0.207367,96447.0,96435.0,0.00017685]
[1733150414826,0.10284521,96446.0,96435.0,0.00017685]
[1733150415527,0.207386,96439.0,96435.0,0.00017685]
[1733150415760,0.31023121,96439.0,96435.0,0.00117685]
[1733150415987,0.31023121,96439.0,96435.0,0.00017685]
[1733150416424,0.31023221,96438.0,96435.0,0.00017685]
[1733150416841,0.51761921,96438.0,96435.0,0.00017685]
[1733150417282,0.207391,96436.0,96435.0,0.00317685]
[1733150417490,0.31023621,96436.0,96435.0,0.00517685]
[1733150417746,0.31023621,96436.0,96435.0,0.00017685]
[1733150418179,0.31023621,96436.0,96435.0,0.00817685]
[1733150418427,0.10284521,96436.0,96435.0,0.00217685]
[1733150418665,0.207382,96441.0,96435.0,0.00217685]
[1733150418666,0.207373,96445.0,96435.0,0.00217685]
[1733150418885,0.207376,96443.0,96435.0,0.00717685]
[1733150419119,0.01735464,96445.0,96435.0,0.00717685]
[1733150419361,0.0008649,96462.0,96441.0,0.19993352]
[1733150419577,0.0008649,96462.0,96460.0,0.207339]
[1733150420491,0.0008649,96462.0,96457.0,0.207344]
[1733150420728,0.0008649,96462.0,96460.0,0.207337]
[1733150421000,0.0008649,96462.0,96461.0,0.207337]
[1733150421490,0.0008649,96462.0,96461.0,0.332137]
[1733150422383,0.0008649,96462.0,96461.0,0.53507052]
[1733150423640,0.0008649,96462.0,96461.0,0.54007052]
[1733150423868,0.0008649,96462.0,96461.0,0.337137]
[1733150424107,0.0008649,96462.0,96461.0,0.345137]
[1733150425008,0.0008649,96462.0,96461.0,0.44798221]
[1733150425486,0.0008649,96462.0,96461.0,0.64791573]
[1733150425700,0.0008649,96462.0,96461.0,0.87091573]
[1733150425921,0.0008629,96494.0,96478.0,0.73433452]
[1733150426153,0.0008629,96494.0,96493.0,0.53430152]
[1733150426154,9e-07,96494.0,96493.0,0.53430152]
[1733150426391,9e-07,96494.0,96493.0,0.86014673]
[1733150426618,0.0008647,96512.0,96511.0,0.53456352]
[1733150426828,0.0008647,96512.0,96511.0,0.83740873]
[1733150427551,0.00145409,96512.0,96511.0,0.83740873]
[1733150428035,0.00145409,96512.0,96511.0,0.86040873]
[1733150428252,0.00145409,96512.0,96511.0,0.86940873]
[1733150429193,0.0008651,96522.0,96521.0,0.430208]
[1733150429419,0.0008651,96522.0,96521.0,0.53305321]
[1733150429420,0.00104184,96522.0,96521.0,0.53305321]
[1733150429652,0.00104184,96522.0,96521.0,0.33305321]
[1733150429872,0.00104184,96522.0,96521.0,0.207208]
[1733150430096,0.00104184,96522.0,96521.0,0.20904137]
[1733150430304,0.00104184,96522.0,96521.0,0.21804137]
[1733150430559,0.00104184,96522.0,96521.0,0.216208]
[1733150430773,0.00104184,96522.0,96521.0,0.225208]
[1733150431479,0.00104184,96522.0,96521.0,0.55105321]
[1733150432391,0.00104184,96522.0,96521.0,0.32805321]
[1733150432599,0.00104184,96522.0,96521.0,0.225208]
[1733150433529,0.00104184,96522.0,96521.0,0.32805321]
[1733150434219,0.00104184,96522.0,96521.0,0.52805321]
[1733150434475,0.00104184,96522.0,96521.0,0.75098673]
[1733150435377,0.00104184,96522.0,96521.0,0.90098673]
[1733150435588,0.00104184,96522.0,96521.0,1.03088673]
[1733150436240,0.00104184,96522.0,96521.0,1.04776069]
[1733150436687,0.01727264,96561.0,96532.0,0.60711852]
[1733150436920,0.01727264,96561.0,96532.0,0.73296373]
[1733150438029,0.01727264,96561.0,96532.0,0.74196373]
[1733150438281,1e-07,96533.0,96532.0,1.01286373]
[1733150438490,6e-07,96535.0,96534.0,0.57293352]
[1733150438705,6e-07,96535.0,96534.0,0.67577873]
[1733150439409,0.0798,96585.0,96558.0,0.207129]
[1733150439622,0.0798,96585.0,96558.0,0.2089617]
[1733150439834,0.01803014,96576.0,96558.0,0.2089617]
[1733150440064,0.01803014,96576.0,96558.0,0.31180691]
[1733150440342,0.01803014,96576.0,96558.0,0.30997421]
[1733150440832,0.00104098,96559.0,96558.0,0.31897421]
[1733150441298,0.00104098,96559.0,96558.0,0.30997421]
[1733150441533,0.00104098,96559.0,96558.0,0.216129]
[1733150442482,0.00104098,96559.0,96558.0,0.009]
[1733150443415,0.00730757,96559.0,96558.0,0.009]
[1733150443658,0.00104098,96559.0,96558.0,0.009]
[1733150444562,0.00104098,96559.0,96558.0,0.018]
[1733150444778,0.00104098,96559.0,96558.0,0.009]
[1733150444988,0.00104098,96559.0,96558.0,0.018]
[1733150445991,0.18986003,96559.0,96558.0,0.018]
[1733150446871,0.00731482,96559.0,96558.0,0.018]
[1733150447302,0.00104098,96559.0,96558.0,0.009]
[1733150447732,0.00104098,96559.0,96558.0,0.002]
[1733150448014,0.00104098,96559.0,96558.0,0.004]
[1733150448448,0.00104098,96559.0,96558.0,0.007]
[1733150448689,0.0811,96583.0,96559.0,0.207127]
[1733150448927,0.0811,96583.0,96558.0,0.21530568]
[1733150449139,0.207086,96579.0,96559.0,0.0018328]
[1733150449370,0.0811,96583.0,96558.0,0.01717668]
[1733150449599,0.00626813,96575.0,96562.0,0.207118]
[1733150449809,0.10284521,96574.0,96558.0,0.01717668]
[1733150450056,0.00626813,96575.0,96559.0,0.00183297]
[1733150450285,0.0811,96583.0,96559.0,0.00183297]
[1733150450707,0.288176,96583.0,96564.0,0.207115]
[1733150450932,0.288176,96583.0,96565.0,0.02161246]
[1733150452028,0.207085,96579.0,96565.0,0.02161246]
[1733150452241,0.414185,96575.0,96565.0,0.02161246]
[1733150452455,0.42046783,96575.0,96564.0,0.003]
[1733150452664,0.00628283,96575.0,96564.0,0.003]
[1733150453143,0.00628283,96575.0,96564.0,0.00483272]
[1733150453371,0.00964231,96582.0,96565.0,0.00183272]
[1733150453592,0.00964231,96582.0,96566.0,0.207112]
[1733150453835,0.00628283,96575.0,96567.0,0.0210112]
[1733150454047,0.00628283,96575.0,96565.0,0.003]
[1733150454048,0.09843373,96583.0,96565.0,0.004]
[1733150454258,0.00965233,96582.0,96565.0,0.004]
[1733150454488,0.09843373,96583.0,96565.0,0.004]
[1733150454489,0.20708,96581.0,96565.0,0.004]
[1733150454713,0.00628283,96575.0,96566.0,0.207112]
[1733150454935,0.00519914,96575.0,96567.0,0.20711]
[1733150455157,0.09843373,96583.0,96567.0,0.20711]
[1733150455158,0.01733373,96583.0,96568.0,0.207107]
[1733150455390,0.01733373,96583.0,96569.0,0.00183269]
[1733150455616,0.01733373,96583.0,96565.0,0.007]
[1733150455617,0.01733373,96583.0,96566.0,0.00183269]
[1733150456052,0.01733373,96583.0,96573.0,0.207096]
[1733150456270,0.01987365,96584.0,96573.0,0.207096]
[1733150456522,0.01987365,96584.0,96573.0,0.414192]
[1733150456967,0.01987365,96584.0,96575.0,0.207092]
[1733150457199,0.01987365,96584.0,96575.0,0.20892443]
[1733150457440,0.01987365,96584.0,96575.0,0.207092]
[1733150458527,0.01987365,96584.0,96575.0,0.216092]
[1733150459919,0.01987365,96584.0,96575.0,0.222092]
[1733150460150,0.02778446,96602.0,96583.0,0.207075]
[1733150460366,0.1895,96598.0,96584.0,0.0207075]
[1733150460587,0.1895,96598.0,96581.0,0.207079]
[1733150460803,0.1895,96598.0,96585.0,0.207071]
[1733150461014,0.1895,96598.0,96576.0,0.20709]
[1733150461229,0.1895,96598.0,96573.0,0.207096]
[1733150461230,0.00621445,96597.0,96573.0,0.207096]
[1733150461442,0.00621445,96597.0,96581.0,0.207079]
[1733150461676,0.00621445,96597.0,96582.0,0.0207079]
[1733150461894,0.207047,96596.0,96576.0,0.207089]
[1733150462128,0.20705,96595.0,96573.0,0.02057254]
[1733150462359,0.20705,96595.0,96538.0,0.207172]
[1733150462360,0.023,96593.0,96555.0,0.00183268]
[1733150462593,0.023,96591.0,96571.0,0.207099]
[1733150462828,0.207062,96589.0,96584.0,0.002]
[1733150463039,0.207071,96585.0,96584.0,0.002]
[1733150463245,0.207071,96585.0,96564.0,0.207115]
[1733150463246,0.414146,96584.0,96564.0,0.207115]
[1733150463491,0.10905966,96585.0,96573.0,0.002]
[1733150463702,0.207073,96584.0,96573.0,0.002]
[1733150463923,0.207073,96584.0,96564.0,0.22781396]
[1733150464167,0.10284521,96583.0,96565.0,0.03171781]
[1733150464391,0.10284521,96583.0,96558.0,0.00017668]
[1733150464392,0.207085,96579.0,96573.0,0.002]
[1733150464629,0.207085,96579.0,96561.0,0.207121]
[1733150464900,0.207085,96579.0,96573.0,0.009]
[1733150465111,0.00621445,96578.0,96573.0,0.009]
[1733150465320,0.00621445,96578.0,96561.0,0.207121]
[1733150465321,0.207088,96577.0,96561.0,0.207121]
[1733150465539,0.207085,96579.0,96565.0,0.009]
[1733150465744,0.00621445,96576.0,96565.0,0.009]
[1733150465956,0.01753897,96581.0,96565.0,0.216112]
[1733150466238,0.23006,96591.0,96565.0,0.216112]
[1733150466239,0.00621445,96575.0,96566.0,0.00183276]
[1733150466454,0.10284521,96590.0,96575.0,0.207091]
[1733150466667,0.10284521,96590.0,96566.0,0.00183276]
[1733150466896,0.00622385,96574.0,96567.0,0.03710241]
[1733150467143,0.01833554,96595.0,96583.0,0.207074]
[1733150467355,0.0008643,96595.0,96581.0,0.207079]
[1733150467587,0.414104,96594.0,96573.0,0.207095]
[1733150467803,0.207054,96593.0,96575.0,0.207092]
[1733150468040,0.20707,96586.0,96576.0,0.03171968]
[1733150468256,0.10284521,96593.0,96567.0,0.00183259]
[1733150468529,0.10284521,96593.0,96561.0,0.00183259]
[1733150468758,0.10284521,96593.0,96581.0,0.004]
[1733150468759,0.207077,96582.0,96581.0,0.004]
[1733150468972,0.10284521,96582.0,96562.0,0.20712]
[1733150469184,0.207101,96572.0,96566.0,0.004]
[1733150469404,0.10284521,96581.0,96566.0,0.004]
[1733150469828,0.10284521,96581.0,96558.0,0.00017668]
[1733150470054,0.023,96580.0,96559.0,0.03175179]
[1733150470277,0.10284521,96579.0,96560.0,0.207125]
[1733150470483,0.10284521,96579.0,96576.0,0.008]
[1733150470694,0.207086,96578.0,96576.0,0.008]
[1733150470912,0.30993121,96578.0,96566.0,0.003]
[1733150471159,0.2071,96572.0,96566.0,0.003]
[1733150471373,0.10284521,96578.0,96566.0,0.003]
[1733150471593,0.207088,96577.0,96566.0,0.003]
[1733150471818,0.207088,96577.0,96576.0,0.004]
[1733150472029,0.207088,96577.0,96566.0,0.003]
[1733150472239,0.10284521,96578.0,96566.0,0.003]
[1733150472240,0.00968667,96576.0,96566.0,0.003]
[1733150472457,0.207095,96574.0,96566.0,0.007]
[1733150472787,0.023,96572.0,96566.0,0.007]
[1733150472889,0.207101,96571.0,96566.0,0.007]
[1733150473111,0.30994621,96571.0,96566.0,0.007]
[1733150473577,0.414211,96569.0,96566.0,0.01]
[1733150473791,0.00622385,96570.0,96566.0,0.003]
[1733150474026,0.207105,96569.0,96558.0,0.00017668]
[1733150474245,0.00622385,96569.0,96566.0,0.005]
[1733150474672,0.30995221,96568.0,96566.0,0.005]
[1733150474909,0.23979807,96567.0,96566.0,0.011]
[1733150475129,0.34264328,96567.0,96566.0,0.005]
[1733150475356,0.34886713,96567.0,96566.0,0.005]
[1733150475564,0.34886713,96567.0,96566.0,0.006]
[1733150475780,0.34886713,96567.0,96566.0,0.01]
[1733150475990,0.34886713,96567.0,96566.0,0.004]
[1733150476200,0.34886713,96567.0,96566.0,0.0057274]
[1733150476415,0.34886713,96567.0,96566.0,0.0017274]
[1733150476638,0.14175713,96567.0,96566.0,0.0057274]
[1733150476862,0.13206906,96567.0,96566.0,0.0057274]
[1733150477076,0.35660798,96567.0,96566.0,0.0057274]
[1733150477300,0.14949798,96567.0,96566.0,0.0057274]
[1733150477746,0.23076277,96567.0,96566.0,0.0057274]
[1733150478174,0.23076277,96567.0,96566.0,0.0127274]
[1733150478407,0.42110406,96567.0,96566.0,0.0127274]
[1733150478615,0.1411375,96567.0,96566.0,0.0127274]
[1733150478833,0.3482475,96567.0,96566.0,0.0127274]
[1733150479083,0.3954475,96567.0,96566.0,0.0127274]
[1733150479354,0.41265554,96567.0,96566.0,0.0127274]
[1733150479562,0.40296471,96567.0,96566.0,0.0017274]
[1733150479795,0.40296471,96567.0,96566.0,0.0037274]
[1733150480010,0.35576471,96567.0,96566.0,0.0037274]
[1733150480235,0.14865471,96567.0,96566.0,0.0017274]
[1733150480488,0.14865471,96567.0,96566.0,0.0027274]
[1733150480489,0.10844667,96567.0,96566.0,0.0027274]
[1733150480742,0.00560146,96567.0,96566.0,0.0027274]
[1733150480946,0.1895,96578.0,96566.0,0.0027274]
[1733150481157,0.10837533,96577.0,96567.0,0.02098504]
[1733150481375,0.00553012,96577.0,96568.0,0.207107]
[1733150481590,0.00553012,96577.0,96567.0,0.02098504]
[1733150481799,0.00553012,96577.0,96566.0,0.0027274]
[1733150482027,0.00553012,96577.0,96567.0,0.20711]
[1733150482451,0.1895,96578.0,96566.0,0.0057274]
[1733150482452,0.1895,96578.0,96566.0,0.0017274]
[1733150482894,0.207091,96576.0,96566.0,0.0017274]
[1733150483112,0.00555458,96577.0,96566.0,0.0017274]